bitfinex-derivatives/quotes_SOLF0:USTF0_20251107
["timestamp","ask_amount","ask_price","bid_price","bid_amount"]
[1762529758172,5.87608407,154.42,154.39,3.01127236]
[1762529758380,4.58951638,154.41,154.39,0.04127236]
[1762529758567,4.58951638,154.4,154.39,0.04127236]
[1762529759477,0.04308407,154.42,154.39,0.04127236]
[1762529759663,4.58980684,154.41,154.39,3.01127236]
[1762529759864,0.04308407,154.42,154.39,3.01127236]
[1762529760080,11.6583,154.52,154.39,3.01127236]
[1762529760267,4.58848674,154.51,154.41,2.97]
[1762529760466,6.01522846,154.53,154.41,2.97]
[1762529760467,4.58848674,154.5,154.41,2.97]
[1762529760667,4.58848674,154.49,154.41,2.97]
[1762529760876,4.58848674,154.48,154.41,2.97]
[1762529761175,6.01522846,154.57,154.44,2.97]
[1762529761377,6.01522846,154.59,154.47,2.97]
[1762529761568,7.1415514,154.62,154.47,2.97]
[1762529761769,1.12632294,154.62,154.47,2.97]
[1762529762078,1.12632294,154.62,154.49,2.97]
[1762529762272,0.0435021,154.56,154.53,3.01118463]
[1762529762575,0.0435021,154.56,154.53,0.04118463]
[1762529763079,5.8712021,154.56,154.53,0.04118463]
[1762529763281,0.0435021,154.56,154.53,0.04118463]
[1762529763674,5.8281,154.55,154.53,0.04118463]
[1762529764277,1.3,154.54,154.42,2.97]
[1762529764473,9.64643441,154.5,154.38,2.97]
[1762529765274,9.69606887,154.46,154.42,0.04643097]
[1762529765580,9.69298071,154.46,154.42,0.04591687]
[1762529765770,9.69298071,154.46,154.33,3.18]
[1762529765974,9.64643441,154.46,154.33,3.18]
[1762529766477,9.64643441,154.46,154.35,3.18]
[1762529766674,9.64643441,154.46,154.39,0.04865325]
[1762529766867,5.87884926,154.42,154.39,0.04865325]
[1762529767070,0.04584926,154.42,154.39,3.22865325]
[1762529768476,0.04584926,154.42,154.39,0.04865325]
[1762529769283,5.87884926,154.42,154.39,0.04865325]
[1762529769683,0.04584926,154.42,154.39,0.04865325]
[1762529770086,5.8335,154.41,154.39,0.04865325]
[1762529770282,0.04584926,154.42,154.39,3.22865325]
[1762529772485,75.19522846,154.52,154.39,3.22865325]
[1762529772486,69.18,154.52,154.39,3.22865325]
[1762529772684,69.18,154.52,154.39,3.18]
[1762529772878,5.8308,154.48,154.39,9.0138]
[1762529773086,69.18,154.52,154.4,3.18]
[1762529773592,5.8314,154.46,154.44,0.049398]
[1762529773786,0.04298718,154.48,154.44,3.229398]
[1762529774686,5.87368718,154.48,154.44,3.229398]
[1762529774883,28.90753196,154.58,154.44,3.229398]
[1762529775086,5.8273,154.57,154.47,3.18]
[1762529775284,9.64643441,154.58,154.47,3.18]
[1762529775596,5.828,154.55,154.47,3.18]
[1762529775979,0.04227894,154.53,154.49,3.22925929]
[1762529776194,0.04227894,154.53,154.49,3.22416743]
[1762529777492,1.12632294,154.62,154.49,3.22416743]
[1762529777694,9.64643441,154.64,154.45,15.59445296]
[1762529777695,9.64643441,154.64,154.51,3.18]
[1762529778198,30.23663206,154.64,154.51,3.18]
[1762529778495,0.04506216,154.59,154.56,0.04143141]
[1762529778703,5.8271,154.58,154.56,0.04143141]
[1762529779194,0.04506216,154.59,154.56,0.04143141]
[1762529779492,5.8269,154.58,154.56,0.04143141]
[1762529780486,1.3,154.57,154.44,3.18]
[1762529780688,9.64643441,154.56,154.44,3.18]
[1762529781483,5.8296,154.51,154.48,0.04165091]
[1762529781685,0.04580511,154.52,154.48,0.04165091]
[1762529782189,5.83,154.5,154.48,0.04165091]
[1762529782584,5.8316,154.46,154.4,3.18]
[1762529782789,9.64643441,154.52,154.4,3.18]
[1762529783696,9.64643441,154.48,154.44,0.04413569]
[1762529783999,5.8329,154.42,154.36,3.18]
[1762529784495,9.64643441,154.44,154.28,9.12801855]
[1762529784692,5.835,154.37,154.29,3.18]
[1762529784888,9.64643441,154.4,154.29,3.18]
[1762529785200,0.04726835,154.35,154.32,3.18]
[1762529785492,0.04726835,154.35,154.32,3.22346507]
[1762529785696,0.04726835,154.35,154.32,0.04346507]
[1762529787598,0.04726835,154.35,154.32,3.22346507]
[1762529787806,0.04726835,154.35,154.32,0.04346507]
[1762529788299,0.04726835,154.35,154.32,3.22346507]
[1762529788492,9.64643441,154.44,154.32,3.22346507]
[1762529788695,9.64643441,154.44,154.32,3.18]
[1762529789094,5.833,154.42,154.32,3.18]
[1762529789293,9.64643441,154.44,154.32,3.18]
[1762529789501,0.04799145,154.4,154.36,0.04361701]
[1762529789899,5.8346,154.38,154.36,0.04361701]
[1762529790398,7.1346,154.38,154.36,0.04361701]
[1762529790605,9.64643441,154.36,154.23,9.12801855]
[1762529791297,9.64643441,154.36,154.23,3.18]
[1762529791697,0.04782073,154.31,154.28,0.04481048]
[1762529792005,5.88492073,154.31,154.28,0.04481048]
[1762529792602,0.04782073,154.31,154.28,0.04481048]
[1762529794301,5.8376,154.3,154.28,0.04481048]
[1762529795196,11.51377869,154.3,154.28,0.04481048]
[1762529795397,12.81377869,154.3,154.28,0.02382261]
[1762529795803,1.3,154.29,154.28,0.02382261]
[1762529796209,11.51377869,154.3,154.28,0.02382261]
[1762529796413,5.8376,154.3,154.28,0.02382261]
[1762529796609,0.04782073,154.31,154.28,3.07382261]
[1762529797118,5.67617869,154.38,154.28,3.07382261]
[1762529797315,5.67617869,154.38,154.28,3.05]
[1762529798021,5.67617869,154.38,154.31,0.04692908]
[1762529798022,0.0462455,154.35,154.31,0.04692908]
[1762529798614,5.8364,154.33,154.31,0.04692908]
[1762529799419,0.0462455,154.35,154.31,0.04692908]
[1762529800214,5.8364,154.33,154.31,0.04692908]
[1762529802623,5.8818455,154.35,154.31,3.21692908]
[1762529802824,0.0462455,154.35,154.31,0.04692908]
[1762529803433,5.8364,154.33,154.31,0.04692908]
[1762529803723,0.0462455,154.35,154.31,0.04692908]
[1762529804627,0.0462455,154.35,154.31,3.21692908]
[1762529805534,17.33807869,154.47,154.31,3.21692908]
[1762529805717,5.8337,154.4,154.33,3.17]
[1762529806117,5.67617869,154.44,154.33,3.17]
[1762529806323,5.8351,154.36,154.33,3.17]
[1762529806519,5.88214114,154.36,154.33,3.21637811]
[1762529806931,0.04704114,154.36,154.33,3.21637811]
[1762529807433,1.12734459,154.47,154.34,3.17]
[1762529807630,5.92,154.49,154.35,5.67617869]
[1762529807833,5.92,154.49,154.39,3.17]
[1762529808327,5.92,154.49,154.42,3.21295797]
[1762529808328,0.04757549,154.46,154.42,3.21295797]
[1762529808935,5.87907549,154.46,154.42,3.21295797]
[1762529809430,0.04757549,154.46,154.42,3.21295797]
[1762529810228,5.67617869,154.57,154.42,3.21295797]
[1762529810433,6.80275687,154.59,154.42,3.17]
[1762529810733,6.80275687,154.59,154.45,3.17]
[1762529811434,0.02699808,154.54,154.5,0.04384399]
[1762529811630,0.02699808,154.54,154.5,3.21384399]
[1762529812030,0.02699808,154.54,154.5,0.04384399]
[1762529812732,0.02699808,154.54,154.5,3.21384399]
[1762529813333,0.02699808,154.54,154.5,0.04384399]
[1762529813837,5.8292,154.52,154.5,0.04384399]
[1762529814137,0.02699808,154.54,154.5,3.21384399]
[1762529814438,5.8289,154.53,154.5,0.04384399]
[1762529815132,5.8293,154.52,154.5,0.04384399]
[1762529815436,0.02699808,154.54,154.5,0.04384399]
[1762529815633,0.02699808,154.54,154.5,3.21384399]
[1762529816930,0.02699808,154.54,154.5,0.04384399]
[1762529817233,0.02699808,154.54,154.5,3.21384399]
[1762529817630,0.02699808,154.54,154.5,0.04384399]
[1762529817929,5.8293,154.52,154.5,0.04384399]
[1762529818438,0.02699808,154.54,154.5,0.04384399]
[1762529819836,5.8292,154.52,154.5,0.04384399]
[1762529820434,0.02699808,154.54,154.5,3.21384399]
[1762529820635,0.02699808,154.54,154.5,0.04384399]
[1762529821249,5.8292,154.52,154.5,0.04384399]
[1762529821432,5.67617869,154.53,154.4,3.17]
[1762529821637,5.67617869,154.49,154.4,3.17]
[1762529822033,5.67617869,154.53,154.4,3.17]
[1762529822536,0.04462707,154.48,154.45,3.21098949]
[1762529822749,5.67617869,154.59,154.45,3.21522621]
[1762529822939,5.67617869,154.59,154.45,3.17]
[1762529823633,5.83,154.5,154.45,3.17]
[1762529823834,0.02584348,154.49,154.46,3.21653093]
[1762529824029,0.02584348,154.49,154.46,3.21236194]
[1762529824230,5.8307,154.48,154.46,0.04236194]
[1762529824835,0.02584348,154.49,154.46,3.21236194]
[1762529825243,5.8307,154.48,154.46,0.04236194]
[1762529825738,0.02584348,154.49,154.46,3.21236194]
[1762529826539,0.02584348,154.49,154.46,0.04236194]
[1762529826740,0.02584348,154.49,154.46,3.21236194]
[1762529828140,86.22677869,154.62,154.49,5.83]
[1762529828141,5.8277,154.56,154.49,5.83]
[1762529828343,68.9,154.62,154.5,3.17]
[1762529828539,93.24,154.68,154.52,3.17]
[1762529828747,5.8247,154.64,154.57,3.17]
[1762529828939,5.8247,154.64,154.59,3.21746194]
[1762529829137,5.67617869,154.68,154.59,3.21746194]
[1762529829338,5.67617869,154.69,154.59,3.21746194]
[1762529829548,5.67617869,154.66,154.62,0.04333278]
[1762529829844,5.8247,154.64,154.62,0.04333278]
[1762529830048,5.67617869,154.63,154.54,3.17]
[1762529830240,5.8248,154.64,154.55,3.17]
[1762529830751,5.67617869,154.67,154.55,3.17]
[1762529831050,5.67617869,154.67,154.59,0.04492743]
[1762529831051,0.04333278,154.63,154.59,0.04492743]
[1762529831446,5.67617869,154.61,154.59,0.04492743]
[1762529831644,11.50177869,154.61,154.59,0.04492743]
[1762529832339,0.04333278,154.63,154.59,0.04492743]
[1762529832544,5.67617869,154.61,154.59,0.04492743]
[1762529832746,11.50197869,154.61,154.59,0.04492743]
[1762529833041,11.50197869,154.61,154.46,3.17]
[1762529833042,1.3,154.6,154.46,3.17]
[1762529833238,5.8296,154.51,154.46,3.17]
[1762529833436,5.67617869,154.54,154.46,3.17]
[1762529833642,5.67617869,154.51,154.42,3.17]
[1762529833843,68.86,154.57,154.38,3.17]
[1762529834048,0.04234051,154.48,154.45,0.04596983]
[1762529834235,5.87999225,154.48,154.45,0.04677632]
[1762529834441,0.04919225,154.48,154.45,0.04677632]
[1762529834938,5.87999225,154.48,154.45,0.04677632]
[1762529835345,5.8312,154.47,154.45,0.04677632]
[1762529835947,0.04919225,154.48,154.45,0.04677632]
[1762529836441,5.87999225,154.48,154.45,0.04677632]
[1762529836747,5.72537094,154.48,154.45,0.04677632]
[1762529836943,0.04919225,154.48,154.45,0.04677632]
[1762529837138,5.67617869,154.47,154.36,3.17]
[1762529837349,96.34497869,154.53,154.36,3.17]
[1762529837350,5.67617869,154.44,154.36,3.17]
[1762529837643,5.8332,154.41,154.36,3.17]
[1762529837850,5.67617869,154.41,154.32,3.17]
[1762529838237,5.8349,154.37,154.35,0.04934791]
[1762529838943,0.04716811,154.38,154.35,0.04934791]
[1762529839748,5.8349,154.37,154.35,0.04934791]
[1762529840644,0.04716811,154.38,154.35,0.04934791]
[1762529840842,0.04716811,154.38,154.35,3.21934791]
[1762529841647,0.04716811,154.38,154.35,0.04934791]
[1762529842154,5.88186811,154.38,154.35,0.04934791]
[1762529842450,0.04716811,154.38,154.35,0.04934791]
[1762529842749,0.04716811,154.38,154.35,3.21934791]
[1762529842938,0.04716811,154.38,154.35,0.04934791]
[1762529843138,5.835,154.37,154.35,0.04934791]
[1762529843343,11.51117869,154.37,154.35,0.04934791]
[1762529843557,6.97617869,154.37,154.27,3.17]
[1762529843753,5.67617869,154.37,154.27,3.17]
[1762529843947,19.49829043,154.46,154.27,3.17]
[1762529844252,5.67617869,154.4,154.27,3.17]
[1762529844452,0.04209302,154.35,154.32,0.04629588]
[1762529846347,0.04209302,154.35,154.32,3.21629588]
[1762529846549,5.8361,154.34,154.32,0.04629588]
[1762529847555,7.1361,154.34,154.32,0.04629588]
[1762529848148,5.8361,154.34,154.32,0.04629588]
[1762529851145,7.1361,154.34,154.32,0.04629588]
[1762529852459,5.67617869,154.33,154.32,0.04629588]
[1762529852957,5.67617869,154.33,154.22,3.17]
[1762529853160,5.67617869,154.3,154.18,3.17]
[1762529853550,5.8392,154.25,154.18,3.17]
[1762529853759,5.67617869,154.27,154.18,3.17]
[1762529853952,5.8407,154.22,154.18,3.17]
[1762529854158,5.8407,154.22,154.21,0.04690285]
[1762529854360,0.04397554,154.24,154.21,0.04690285]
[1762529855158,0.04397554,154.24,154.21,3.04690285]
[1762529855356,0.04397554,154.24,154.21,0.04690285]
[1762529855561,5.8401,154.23,154.21,0.04690285]
[1762529855860,0.04397554,154.24,154.21,3.04690285]
[1762529858364,0.04397554,154.24,154.21,0.04690285]
[1762529858862,0.04397554,154.24,154.21,3.04690285]
[1762529859567,19.17068264,154.25,154.21,3.04690285]
[1762529859863,9.67276477,154.31,154.21,3.04690285]
[1762529860065,9.67276477,154.31,154.21,3.0]
[1762529860266,68.86,154.34,154.21,3.0]
[1762529860773,0.04596317,154.29,154.26,3.10277664]
[1762529861266,0.04596317,154.29,154.26,0.04277664]
[1762529861267,5.8382,154.28,154.26,0.04277664]
[1762529863360,7.1382,154.28,154.26,0.04277664]
[1762529863871,5.8382,154.28,154.26,0.04277664]
[1762529867970,21.34896477,154.28,154.18,3.06]
[1762529869173,5.8403,154.22,154.21,0.04774482]
[1762529869677,5.8425,154.17,154.13,3.06]
[1762529869875,11.68,154.23,154.13,3.06]
[1762529870770,5.842,154.18,154.16,0.04527631]
[1762529871271,0.04845918,154.2,154.16,0.04527631]
[1762529871475,5.842,154.18,154.16,0.04527631]
[1762529874370,0.04845918,154.2,154.16,0.04527631]
[1762529874371,5.88975918,154.2,154.16,0.04527631]
[1762529874682,0.04845918,154.2,154.16,0.04527631]
[1762529874870,0.04845918,154.2,154.16,3.10527631]
[1762529875180,0.04845918,154.2,154.16,0.04527631]
[1762529875880,5.8421,154.18,154.16,0.04527631]
[1762529876082,0.04845918,154.2,154.16,0.04527631]
[1762529876573,5.842,154.18,154.16,0.04527631]
[1762529877079,0.04845918,154.2,154.16,3.10527631]
[1762529878976,5.88965918,154.2,154.16,3.10527631]
[1762529879176,0.04845918,154.2,154.16,3.10527631]
[1762529880177,5.8414,154.19,154.16,3.10527631]
[1762529880373,0.04845918,154.2,154.16,3.10527631]
[1762529880573,0.04845918,154.2,154.16,0.04527631]
[1762529880872,5.8419,154.18,154.16,0.04527631]
[1762529882373,7.1419,154.18,154.16,0.04527631]
[1762529882576,9.67276477,154.16,154.06,3.06]
[1762529883277,9.67276477,154.2,154.06,3.06]
[1762529883675,5.8439,154.13,154.11,0.04356297]
[1762529884069,0.04567618,154.15,154.11,0.04356297]
[1762529884276,0.04567618,154.15,153.97,93.34]
[1762529884478,9.67276477,154.16,153.97,93.34]
[1762529884675,5.8455,154.09,153.97,99.1897]
[1762529884979,5.8455,154.09,153.98,62.0]
[1762529885480,0.04104793,154.05,154.02,0.04376473]
[1762529886481,0.04104793,154.05,154.02,3.30376473]
[1762529886885,5.88804793,154.05,154.02,3.30376473]
[1762529887075,0.04104793,154.05,154.02,3.30376473]
[1762529887277,5.88784793,154.05,154.02,0.04376473]
[1762529887476,0.04104793,154.05,154.02,3.30376473]
[1762529887683,0.04104793,154.05,154.02,0.04376473]
[1762529888680,5.8474,154.04,154.02,0.04376473]
[1762529889776,0.04104793,154.05,153.93,3.26]
[1762529889977,9.67276477,154.06,153.93,3.26]
[1762529890380,5.8485,154.01,153.93,3.26]
[1762529890783,0.04666925,153.99,153.95,0.04736876]
[1762529890986,9.67276477,154.07,153.96,3.26]
[1762529891885,0.04411655,154.03,154.0,0.04898206]
[1762529892688,5.8485,154.01,154.0,0.04898206]
[1762529893588,7.1485,154.01,154.0,0.04898206]
[1762529894288,1.3,154.01,153.88,3.26]
[1762529894493,9.67276477,153.95,153.84,3.26]
[1762529894792,5.852,153.92,153.84,3.26]
[1762529894990,9.67276477,154.0,153.84,3.26]
[1762529895288,9.67276477,154.0,153.74,10.94466666]
[1762529895289,9.67276477,153.93,153.9,0.0476094]
[1762529895590,5.8522,153.91,153.86,3.26]
[1762529895893,5.8522,153.91,153.9,0.04738719]
[1762529896889,1.3,153.91,153.8,3.26]
[1762529897086,9.67276477,153.87,153.8,3.26]
[1762529897288,9.67276477,153.89,153.8,3.26]
[1762529897487,15.52586477,153.89,153.8,3.26]
[1762529897689,9.67276477,153.89,153.8,3.26]
[1762529897888,9.67276477,153.89,153.68,9.67276477]
[1762529897889,0.04116269,153.86,153.83,3.3009491]
[1762529898085,0.04693055,153.86,153.83,3.30403586]
[1762529898796,9.67276477,153.97,153.83,3.30403586]
[1762529898996,9.67276477,153.97,153.83,3.26]
[1762529899189,5.8509,153.94,153.83,3.26]
[1762529899388,9.67276477,153.97,153.83,3.26]
[1762529899791,5.8527,153.9,153.88,0.04315247]
[1762529900085,9.67276477,153.93,153.83,3.26]
[1762529900291,5.8531,153.89,153.83,3.26]
[1762529900598,5.8531,153.89,153.74,62.0]
[1762529900599,9.67276477,153.89,153.8,3.26]
[1762529900799,9.67276477,153.91,153.8,3.26]
[1762529900989,0.04935669,153.87,153.84,0.04664452]
[1762529902293,5.90325669,153.87,153.84,0.04664452]
[1762529902493,0.04935669,153.87,153.84,3.30664452]
[1762529903288,9.67276477,153.97,153.84,3.30664452]
[1762529903488,9.67276477,153.99,153.86,3.26]
[1762529904296,9.67276477,153.99,153.91,0.04597107]
[1762529904297,0.04325129,153.94,153.91,0.04597107]
[1762529904491,0.04325129,153.94,153.91,3.30597107]
[1762529905790,0.04325129,153.94,153.91,0.04597107]
[1762529905995,5.8514,153.93,153.91,0.04597107]
[1762529906998,5.8524,153.9,153.82,3.26]
[1762529907292,9.67276477,153.95,153.82,3.26]
[1762529908103,0.04754115,153.9,153.87,0.04380625]
[1762529908792,5.853,153.89,153.87,0.04380625]
[1762529910003,0.04754115,153.9,153.87,0.04380625]
[1762529910300,0.04754115,153.9,153.87,3.30380625]
[1762529911796,0.04754115,153.9,153.87,0.04380625]
[1762529913096,0.04754115,153.9,153.87,3.30380625]
[1762529915791,5.853,153.89,153.87,0.04380625]
[1762529918603,0.04754115,153.9,153.87,0.04380625]
[1762529918804,5.70401739,153.89,153.87,0.04380625]
[1762529919001,5.70401739,153.89,153.78,3.17]
[1762529919192,5.70401739,153.86,153.78,3.17]
[1762529919590,5.70401739,153.83,153.74,3.17]
[1762529920090,0.0449389,153.8,153.77,0.04698925]
[1762529920293,5.70401739,153.87,153.77,3.14927771]
[1762529920496,5.8545,153.85,153.78,3.1]
[1762529920898,5.70401739,153.9,153.78,3.1]
[1762529921104,5.70401739,153.9,153.82,3.1]
[1762529921398,0.04900545,153.88,153.84,0.04260023]
[1762529921601,5.8541,153.86,153.84,0.04260023]
[1762529922212,5.70401739,153.87,153.84,0.04260023]
[1762529922602,5.854,153.86,153.84,0.04260023]
[1762529923298,5.70401739,153.87,153.84,0.04260023]
[1762529923700,5.8542,153.86,153.84,0.04260023]
[1762529923901,7.00401739,153.87,153.75,3.1]
[1762529924099,5.70401739,153.87,153.75,3.1]
[1762529924404,36.91711167,153.9,153.69,3.1]
[1762529924405,5.70401739,153.84,153.69,3.1]
[1762529924803,0.04502955,153.78,153.75,0.0498192]
[1762529925404,5.8575,153.77,153.75,0.0498192]
[1762529925603,5.70401739,153.77,153.65,3.1]
[1762529925807,5.8594,153.72,153.65,3.1]
[1762529926105,5.70401739,153.77,153.65,3.1]
[1762529926403,5.70401739,153.77,153.67,3.1]
[1762529926404,5.8583,153.75,153.67,3.1]
[1762529926603,5.70401739,153.77,153.67,3.1]
[1762529926909,0.04736532,153.73,153.7,3.1]
[1762529928302,5.8571,153.78,153.7,3.1]
[1762529928498,5.70401739,153.81,153.7,3.1]
[1762529928697,5.8575,153.77,153.71,3.1]
[1762529928903,68.82,153.83,153.71,3.1]
[1762529929210,0.04686357,153.79,153.75,0.04502277]
[1762529929806,0.04686357,153.79,153.75,3.14502277]
[1762529930208,5.8575,153.77,153.75,0.04502277]
[1762529930405,0.04686357,153.79,153.75,3.14502277]
[1762529930606,0.04686357,153.79,153.75,0.04502277]
[1762529931203,0.04686357,153.79,153.75,3.14502277]
[1762529932216,5.8572,153.78,153.75,3.14502277]
[1762529932607,0.04686357,153.79,153.75,3.14502277]
[1762529932906,5.8575,153.77,153.75,3.14502277]
[1762529933108,5.8575,153.77,153.75,0.04502277]
[1762529934899,7.1575,153.77,153.75,0.04502277]
[1762529936019,0.04686357,153.79,153.75,0.04502277]
[1762529936617,0.04686357,153.79,153.75,3.14502277]
[1762529936909,0.04686357,153.79,153.75,0.04502277]
[1762529937115,5.8575,153.77,153.75,0.04502277]
[1762529937614,5.90366357,153.79,153.75,3.14502277]
[1762529938814,5.8572,153.78,153.75,3.14502277]
[1762529939309,0.04686357,153.79,153.75,0.04502277]
[1762529939617,5.8576,153.77,153.75,0.04502277]
[1762529940506,5.70401739,153.78,153.75,0.04502277]
[1762529941105,5.8575,153.77,153.75,0.04502277]
[1762529941414,0.04686357,153.79,153.75,0.04502277]
[1762529941612,5.8575,153.77,153.75,0.04502277]
[1762529943310,0.04686357,153.79,153.75,3.14502277]
[1762529944214,19.50799428,153.9,153.75,3.14502277]
[1762529944414,5.70401739,153.9,153.77,3.1]
[1762529945118,0.04441351,153.85,153.82,0.04107818]
[1762529945313,5.8546,153.84,153.82,0.04107818]
[1762529946816,0.04441351,153.85,153.82,0.04107818]
[1762529947022,0.04441351,153.85,153.82,3.12107818]
[1762529947231,0.04441351,153.85,153.82,0.04107818]
[1762529947520,0.04441351,153.85,153.82,3.12107818]
[1762529950022,5.70401739,153.93,153.82,3.12107818]
[1762529950223,5.70401739,153.93,153.82,3.08]
[1762529950718,5.70401739,153.93,153.84,3.08]
[1762529950926,0.04999956,153.9,153.87,3.12353353]
[1762529951121,5.8529,153.89,153.87,3.12353353]
[1762529951521,0.04999956,153.9,153.87,3.12353353]
[1762529951719,5.8529,153.89,153.87,0.04353353]
[1762529952426,5.8555,153.82,153.79,3.08]
[1762529952617,5.70401739,153.9,153.79,3.08]
[1762529952816,5.8537,153.87,153.8,3.08]
[1762529953119,5.70401739,153.9,153.8,3.08]
[1762529953320,5.8541,153.86,153.83,3.12419997]
[1762529953518,0.04665205,153.86,153.83,3.12419997]
[1762529953720,11.7067045,153.98,153.83,3.12419997]
[1762529953924,24.85175059,153.98,153.85,3.08]
[1762529954523,5.70401739,153.98,153.86,3.08]
[1762529954722,0.04941903,153.93,153.9,0.04163401]
[1762529954923,0.04941903,153.93,153.9,3.12163401]
[1762529957022,0.04941903,153.93,153.9,0.04163401]
[1762529958425,5.8518,153.92,153.9,0.04163401]
[1762529958622,5.70401739,153.92,153.82,3.08]
[1762529959223,5.8535,153.88,153.82,3.08]
[1762529959729,0.0486734,153.87,153.83,3.12902561]
[1762529959928,0.04733824,153.87,153.83,3.12902561]
[1762529961626,5.90113824,153.87,153.83,3.12902561]
[1762529961830,0.04733824,153.87,153.83,0.04902561]
[1762529962818,5.70401739,153.86,153.83,0.04902561]
[1762529963024,0.04733824,153.87,153.83,3.12902561]
[1762529965132,5.70401739,153.95,153.83,3.12902561]
[1762529965327,5.70401739,153.95,153.83,3.08]
[1762529965627,19.72544593,153.99,153.85,3.08]
[1762529965830,5.70401739,153.99,153.85,3.08]
[1762529966126,0.04482325,153.94,153.9,0.04267719]
[1762529966425,0.04518078,153.94,153.9,0.04133664]
[1762529966621,0.04518078,153.94,153.9,3.12133664]
[1762529966819,5.8514,153.93,153.9,3.12133664]
[1762529967224,5.89618078,153.94,153.9,3.12133664]
[1762529967428,5.89618078,153.94,153.9,0.04133664]
[1762529967429,0.04518078,153.94,153.9,0.04133664]
[1762529967827,0.04518078,153.94,153.91,3.08]
[1762529968034,5.70401739,154.02,153.91,3.08]
[1762529968323,5.70401739,154.05,153.92,5.8514]
[1762529968632,5.70401739,154.05,153.93,3.08]
[1762529969128,0.04174263,154.01,153.97,0.04837956]
[1762529969323,5.8491,153.99,153.97,0.04837956]
[1762529971130,11.55311739,153.99,153.97,0.04837956]
[1762529971637,5.851,153.94,153.88,3.08]
[1762529972026,4.59688111,153.98,153.88,3.08]
[1762529972226,5.70401739,153.99,153.88,3.08]
[1762529972227,4.59688111,153.97,153.88,3.08]
[1762529972532,0.04616437,153.94,153.91,0.04400296]
[1762529972728,5.8514,153.93,153.91,0.04400296]
[1762529973127,0.04616437,153.94,153.91,0.04400296]
[1762529973327,5.8514,153.93,153.91,0.04400296]
[1762529974836,0.04616437,153.94,153.91,0.04400296]
[1762529975031,0.04616437,153.94,153.91,3.11400296]
[1762529975232,11.6957,154.02,153.91,3.11400296]
[1762529975233,4.59925923,154.01,153.91,3.11400296]
[1762529975427,5.8488,154.0,153.92,3.07]
[1762529975627,4.59925923,154.01,153.92,3.07]
[1762529975833,5.70401739,154.02,153.92,3.07]
[1762529976035,5.70401739,154.02,153.93,3.07]
[1762529976332,0.04154092,153.99,153.96,3.11735091]
[1762529977634,0.04154092,153.99,153.96,0.04735091]
[1762529978236,5.8496,153.98,153.96,0.04735091]
[1762529981141,0.04154092,153.99,153.96,3.18735091]
[1762529982042,0.04154092,153.99,153.96,0.04735091]
[1762529982335,5.8495,153.98,153.96,0.04735091]
[1762529982535,0.04154092,153.99,153.96,0.04735091]
[1762529982732,0.04154092,153.99,153.96,3.18735091]
[1762529983234,5.8495,153.98,153.96,3.18735091]
[1762529983541,5.8495,153.98,153.96,0.04735091]
[1762529984140,5.8495,153.98,153.96,3.18735091]
[1762529984336,5.8512,153.94,153.86,3.14]
[1762529984526,4.60318445,153.97,153.86,3.14]
[1762529984731,4.60117547,153.96,153.86,3.14]
[1762529985030,4.60117547,153.95,153.86,3.14]
[1762529985336,0.04231392,153.92,153.89,0.04715564]
[1762529985836,5.89421392,153.92,153.89,3.18715564]
[1762529986231,5.8521,153.91,153.89,3.18715564]
[1762529986634,5.8521,153.91,153.89,0.04715564]
[1762529987135,0.04231392,153.92,153.89,3.18715564]
[1762529989338,5.1629377,153.95,153.89,3.18715564]
[1762529989738,5.1629377,153.95,153.9,3.14]
[1762529990137,0.04188689,153.94,153.9,3.14]
[1762529990344,5.89288689,153.94,153.9,3.14]
[1762529990544,0.04188689,153.94,153.9,3.14]
[1762529991044,5.8514,153.93,153.9,3.14]
[1762529991230,0.04188689,153.94,153.9,3.14]
[1762529992344,5.8514,153.93,153.9,3.14]
[1762529992546,0.04188689,153.94,153.9,3.14]
[1762529993046,5.89288689,153.94,153.9,3.14]
[1762529993343,0.04188689,153.94,153.9,3.14]
[1762529993746,0.04188689,153.94,153.91,3.14]
[1762529994341,4.62607999,154.01,153.91,3.14]
[1762529994541,4.62607999,154.0,153.91,3.14]
[1762529994746,4.62607999,153.99,153.92,3.14]
[1762529995040,9.69969215,154.05,153.92,3.14]
[1762529995247,4.62493101,154.04,153.96,3.14]